bitfinex/quotes_BTCUSD_20240620
["timestamp","ask_amount","ask_price","bid_price","bid_amount"]
[1718920066744,0.08415215,65181.0,65180.0,0.26386112]
[1718920067780,0.08415216,65181.0,65180.0,0.26386112]
[1718920068731,0.08415216,65181.0,65180.0,0.15956112]
[1718920071070,0.08415451,65181.0,65180.0,0.15956112]
[1718920071610,0.08415451,65181.0,65180.0,0.26756112]
[1718920072053,0.08415451,65181.0,65180.0,0.39452723]
[1718920072823,0.08415451,65181.0,65180.0,0.30342723]
[1718920073406,0.08415481,65181.0,65180.0,0.30342723]
[1718920073735,0.1238012,65181.0,65180.0,0.30342723]
[1718920074293,0.11424639,65181.0,65180.0,0.30342723]
[1718920074548,0.12380124,65181.0,65180.0,0.30342723]
[1718920074702,0.12380124,65181.0,65180.0,0.26756112]
[1718920074911,0.22600124,65181.0,65180.0,0.15956112]
[1718920075116,0.07093557,65191.0,65180.0,0.15956112]
[1718920075278,0.0746,65181.0,65180.0,0.15956112]
[1718920075487,0.08415474,65181.0,65180.0,0.15956112]
[1718920076098,0.08415474,65181.0,65180.0,0.15556112]
[1718920076304,0.08415474,65181.0,65180.0,0.15656112]
[1718920076929,0.08415474,65181.0,65180.0,0.15556112]
[1718920077251,0.08415474,65181.0,65180.0,0.15956112]
[1718920077451,0.0746,65181.0,65180.0,0.15956112]
[1718920077861,0.08415438,65181.0,65180.0,0.15956112]
[1718920080779,0.08415445,65181.0,65180.0,0.15956112]
[1718920081603,0.08415445,65181.0,65180.0,0.16050712]
[1718920081783,0.00955445,65181.0,65180.0,0.16050712]
[1718920081980,0.08415445,65181.0,65180.0,0.16050712]
[1718920082357,0.41655164,65192.0,65181.0,0.01]
[1718920082489,0.41655164,65192.0,65182.0,0.15256112]
[1718920082693,0.0746,65183.0,65182.0,0.15256112]
[1718920084313,0.0746,65183.0,65182.0,0.15456112]
[1718920086828,0.48385244,65192.0,65182.0,0.15456112]
[1718920086962,0.0746,65183.0,65182.0,0.15456112]
[1718920087742,0.0746,65183.0,65182.0,0.15256112]
[1718920088054,0.0746,65183.0,65182.0,0.15356112]
[1718920088399,0.0746,65183.0,65182.0,0.15256112]
[1718920089217,0.0746,65183.0,65182.0,0.15356112]
[1718920089709,0.0746,65183.0,65182.0,0.15256112]
[1718920089865,0.0746,65183.0,65182.0,0.15456112]
[1718920090080,0.0058,65188.0,65182.0,0.15456112]
[1718920090264,0.0746,65183.0,65182.0,0.15456112]
[1718920090965,0.0746,65183.0,65182.0,0.15256112]
[1718920091171,0.0746,65183.0,65182.0,0.001]
[1718920091661,0.0746,65183.0,65180.0,0.000946]
[1718920092926,0.0058,65182.0,65180.0,0.000946]
[1718920093079,0.0058,65182.0,65174.0,0.01]
[1718920093080,0.08415255,65181.0,65174.0,0.01]
[1718920093283,0.0746,65175.0,65174.0,0.006946]
[1718920093507,0.35449958,65186.0,65172.0,0.0895]
[1718920093845,0.35449958,65186.0,65180.0,0.002]
[1718920093846,0.68373484,65185.0,65180.0,0.002]
[1718920094032,0.0746,65181.0,65180.0,0.002]
[1718920094187,0.20228174,65181.0,65180.0,0.003]
[1718920094388,0.90228174,65181.0,65174.0,0.015099]
[1718920094596,0.0746,65175.0,65172.0,0.0905]
[1718920094802,0.00955174,65174.0,65172.0,0.0915]
[1718920095154,0.00955174,65173.0,65172.0,0.0905]
[1718920095550,0.00955174,65173.0,65172.0,0.1005]
[1718920095704,0.00955174,65173.0,65172.0,0.0905]
[1718920096132,0.00955174,65173.0,65172.0,0.0895]
[1718920096710,0.01022262,65173.0,65172.0,0.104599]
[1718920097124,0.01022262,65173.0,65172.0,0.108599]
[1718920097368,0.01022262,65173.0,65172.0,0.0935]
[1718920097569,0.01022262,65173.0,65172.0,0.108599]
[1718920097756,0.01022262,65173.0,65172.0,0.111599]
[1718920098396,0.01022262,65173.0,65172.0,0.0965]
[1718920098529,0.01022262,65173.0,65172.0,0.007]
[1718920099946,0.0746,65175.0,65172.0,0.007]
[1718920100145,0.0102564,65174.0,65172.0,0.007]
[1718920100328,0.0102564,65173.0,65172.0,0.007]
[1718920100729,0.0102564,65173.0,65172.0,0.003]
[1718920100960,0.0102564,65173.0,65171.0,0.015099]
[1718920101158,0.7,65181.0,65172.0,0.002]
[1718920101383,0.0746,65173.0,65172.0,0.004]
[1718920101581,0.08456433,65173.0,65172.0,0.004]
[1718920102518,0.08456433,65173.0,65172.0,0.005]
[1718920102754,0.08456433,65173.0,65172.0,0.009]
[1718920103360,0.08455817,65173.0,65172.0,0.009]
[1718920103753,0.08455817,65173.0,65172.0,0.024099]
[1718920106400,0.0746,65173.0,65172.0,0.024099]
[1718920106577,0.08485545,65173.0,65172.0,0.024099]
[1718920108080,0.08485545,65173.0,65170.0,0.015099]
[1718920108329,0.08485545,65173.0,65161.0,0.000946]
[1718920108330,0.01025545,65172.0,65161.0,0.000946]
[1718920108526,0.01765545,65171.0,65162.0,0.15256112]
[1718920108757,0.0746,65163.0,65162.0,0.15256112]
[1718920109035,0.09225545,65163.0,65161.0,0.000946]
[1718920109234,0.01025545,65162.0,65161.0,0.000946]
[1718920109737,0.01216852,65162.0,65161.0,0.000946]
[1718920110271,0.08676852,65162.0,65161.0,0.000946]
[1718920112234,0.08776852,65162.0,65161.0,0.000946]
[1718920112434,0.01316852,65162.0,65161.0,0.000946]
[1718920112634,0.08852486,65162.0,65161.0,0.000946]
[1718920114637,0.09152486,65162.0,65161.0,0.000946]
[1718920115875,0.09145013,65162.0,65161.0,0.000946]
[1718920119197,0.09170636,65162.0,65161.0,0.000946]
[1718920119406,0.09916996,65162.0,65161.0,0.000946]
[1718920119641,0.10456996,65162.0,65161.0,0.000946]
[1718920122498,0.10435842,65162.0,65161.0,0.000946]
[1718920122700,0.09895842,65162.0,65161.0,0.000946]
[1718920122899,0.09155842,65162.0,65161.0,0.000946]
[1718920125720,0.0786,65162.0,65161.0,0.000946]
[1718920125925,0.0915989,65162.0,65161.0,0.000946]
[1718920128861,0.09164652,65162.0,65161.0,0.000946]
[1718920132064,0.09165224,65162.0,65161.0,0.000946]
[1718920132904,0.01705224,65162.0,65161.0,0.000946]
[1718920133111,0.09165224,65162.0,65161.0,0.000946]
[1718920133559,0.0786,65162.0,65161.0,0.000946]
[1718920133731,0.09184692,65162.0,65161.0,0.000946]
[1718920135508,0.09190009,65162.0,65161.0,0.000946]
[1718920136938,0.09930009,65162.0,65161.0,0.000946]
[1718920138600,0.09873211,65162.0,65161.0,0.000946]
[1718920138800,0.09133211,65162.0,65161.0,0.000946]
[1718920141859,0.09137502,65162.0,65161.0,0.000946]
[1718920144906,0.09117763,65162.0,65161.0,0.000946]
[1718920147124,0.01657763,65162.0,65161.0,0.214246]
[1718920147388,0.09117763,65162.0,65161.0,0.214246]
[1718920147814,0.01657763,65162.0,65161.0,0.214246]
[1718920148164,0.09117763,65162.0,65161.0,0.214246]
[1718920148361,0.09157896,65162.0,65161.0,0.214246]
[1718920151416,0.09122356,65162.0,65161.0,0.214246]
[1718920153867,0.09152466,65162.0,65161.0,0.214246]
[1718920154680,0.09152459,65162.0,65161.0,0.214246]
[1718920157815,0.09175408,65162.0,65161.0,0.214246]
[1718920161175,0.0917669,65162.0,65161.0,0.214246]
[1718920163861,0.0490091,65167.0,65161.0,0.214246]
[1718920164154,0.0746,65162.0,65161.0,0.214246]
[1718920165279,0.0746,65162.0,65161.0,0.215246]
[1718920165685,0.0746,65162.0,65161.0,0.214246]
[1718920165890,0.0756,65162.0,65161.0,0.214246]
[1718920166091,0.0756,65162.0,65161.0,0.215246]
[1718920166267,0.0756,65162.0,65161.0,0.214246]
[1718920167047,0.0786,65162.0,65161.0,0.214246]
[1718920168368,0.004,65162.0,65161.0,0.214246]
[1718920168758,0.0786,65162.0,65161.0,0.214246]
[1718920174017,0.08814889,65162.0,65161.0,0.214246]
[1718920176230,0.01354889,65162.0,65161.0,0.214246]
[1718920176430,0.08814889,65162.0,65161.0,0.214246]
[1718920176912,0.08814862,65162.0,65161.0,0.214246]
[1718920178357,0.13047101,65162.0,65161.0,0.214246]
[1718920179058,0.13047101,65162.0,65161.0,0.21420182]
[1718920180182,0.13047039,65162.0,65161.0,0.21420182]
[1718920183117,0.13047039,65162.0,65161.0,0.00090182]
[1718920183319,0.04632239,65162.0,65161.0,0.00090182]
[1718920183517,0.13047038,65162.0,65161.0,0.00090182]
[1718920183716,0.05587038,65162.0,65161.0,0.00090182]
[1718920183933,0.13047038,65162.0,65161.0,0.00090182]
[1718920186547,0.12092239,65162.0,65161.0,0.00090182]
[1718920186775,0.13047034,65162.0,65161.0,0.00090182]
[1718920187261,0.83047034,65162.0,65161.0,0.00090182]
[1718920189877,0.83047036,65162.0,65161.0,0.00090182]
[1718920191142,0.0142,65161.0,65152.0,0.009493]
[1718920191342,0.84227036,65162.0,65154.0,0.2209]
[1718920191343,0.00954797,65160.0,65154.0,0.2209]
[1718920191587,0.0746,65154.0,65153.0,0.15256112]
[1718920191758,0.08414797,65154.0,65153.0,0.15256112]
[1718920192114,0.08414797,65154.0,65153.0,0.35576112]
[1718920193571,0.0746,65154.0,65153.0,0.35576112]
[1718920193931,0.08414798,65154.0,65153.0,0.35576112]
[1718920194144,0.08514798,65154.0,65153.0,0.36376112]
[1718920194717,0.08614798,65154.0,65153.0,0.37276112]
[1718920194947,0.01154798,65154.0,65153.0,0.37276112]
[1718920196146,0.01154814,65154.0,65153.0,0.37276112]
[1718920203819,0.03936846,65154.0,65153.0,0.37276112]
[1718920205598,0.03936845,65154.0,65153.0,0.37276112]
[1718920205807,0.08140291,65154.0,65153.0,0.37276112]
[1718920208335,0.15600291,65154.0,65153.0,0.37276112]
[1718920208735,0.14645478,65154.0,65153.0,0.37276112]
[1718920209090,0.15600276,65154.0,65153.0,0.37276112]
[1718920210081,0.15600276,65154.0,65153.0,0.37370712]
[1718920213644,0.14832276,65154.0,65153.0,0.37370712]
[1718920215100,0.14832286,65154.0,65153.0,0.37370712]
[1718920218273,0.14832467,65154.0,65153.0,0.37370712]
[1718920221382,0.13877478,65154.0,65153.0,0.37370712]
[1718920221579,0.14832468,65154.0,65153.0,0.17050712]
[1718920222704,0.07372468,65154.0,65153.0,0.17050712]
[1718920222883,0.14832468,65154.0,65153.0,0.17050712]
[1718920224806,0.1483247,65154.0,65153.0,0.17050712]
[1718920226914,0.05158438,65154.0,65153.0,0.37730712]
[1718920227807,0.04203446,65154.0,65153.0,0.37730712]
[1718920228008,0.05158331,65154.0,65153.0,0.37730712]
[1718920229243,0.05158331,65154.0,65153.0,0.37770712]
[1718920229850,0.12618331,65154.0,65153.0,0.37770712]
[1718920231589,0.14129377,65154.0,65153.0,0.37770712]
[1718920233006,100.00019,65526.0,65153.0,0.37770712]
[1718920233234,0.01252778,65154.0,65153.0,0.41642713]
[1718920233432,0.0746,65155.0,65153.0,0.37770712]
[1718920234037,0.0746,65155.0,65153.0,0.36870712]
[1718920234444,0.0746,65155.0,65153.0,0.36170712]
[1718920234644,0.0746,65155.0,65153.0,0.36270712]
[1718920235070,0.0746,65155.0,65153.0,0.36070712]
[1718920235254,0.0756,65155.0,65153.0,0.36870712]
[1718920235881,0.0756,65155.0,65153.0,0.37570712]
[1718920236044,0.0766,65155.0,65153.0,0.37570712]
[1718920236459,0.0766,65155.0,65154.0,0.113]
[1718920236797,0.0766,65155.0,65154.0,0.26556112]
[1718920237384,0.0756,65155.0,65154.0,0.26556112]
[1718920237749,0.08813138,65155.0,65154.0,0.26556112]
[1718920237954,0.08813138,65155.0,65154.0,0.27356112]
[1718920238157,0.08913138,65155.0,65154.0,0.28056112]
[1718920241421,0.01453138,65155.0,65154.0,0.28056112]
[1718920241621,0.01044274,65155.0,65154.0,0.28056112]
[1718920241800,0.40910974,65171.0,65154.0,0.28056112]
[1718920242001,0.0746,65157.0,65155.0,0.19087113]
[1718920242233,0.0746,65157.0,65155.0,0.15256112]
[1718920242385,0.0746,65157.0,65154.0,0.015]
[1718920242594,0.01044634,65156.0,65154.0,0.16756112]
[1718920242826,0.00086,65155.0,65154.0,0.15956112]
[1718920243127,0.01130274,65155.0,65154.0,0.15956112]
[1718920243367,0.01130274,65155.0,65154.0,0.15256112]
[1718920244170,0.01330274,65155.0,65154.0,0.16756112]
[1718920244935,0.01330274,65155.0,65154.0,0.015]
[1718920254778,0.05790911,65155.0,65154.0,0.015]
[1718920255360,0.01330274,65155.0,65154.0,0.015]
[1718920260845,0.0132989,65155.0,65154.0,0.015]
[1718920262898,0.0132989,65155.0,65154.0,0.1328]
[1718920263015,0.0132989,65155.0,65154.0,0.015]
[1718920269496,0.0132989,65155.0,65154.0,0.00732]
[1718920274767,0.0132989,65155.0,65154.0,0.008266]
[1718920295827,0.0132989,65155.0,65154.0,0.104266]
[1718920300270,0.0132989,65155.0,65154.0,0.227666]
[1718920311743,0.39256579,65171.0,65155.0,0.1235]
[1718920311949,0.232336,65170.0,65157.0,0.1235]
[1718920312161,0.0746,65158.0,65157.0,0.1235]
[1718920313520,0.42094916,65171.0,65158.0,0.3133]
[1718920313521,0.0746,65159.0,65158.0,0.3133]
[1718920313718,0.0746,65159.0,65158.0,0.46586112]
[1718920314127,0.0746,65159.0,65158.0,0.36586112]
[1718920314749,0.0746,65159.0,65158.0,0.46586112]
[1718920315183,0.0746,65159.0,65158.0,0.46786112]
[1718920316180,0.0746,65159.0,65158.0,0.46986112]
[1718920324243,0.36727228,65171.0,65158.0,0.36986112]
[1718920324244,0.32124833,65171.0,65158.0,0.36986112]
[1718920324444,0.08416315,65159.0,65158.0,0.2173]
[1718920324660,0.0746,65159.0,65158.0,0.2173]
[1718920324858,0.08416315,65159.0,65158.0,0.2173]
[1718920325080,0.08416315,65159.0,65158.0,0.2153]
[1718920325492,0.08416315,65159.0,65158.0,0.2163]
[1718920327066,0.08416315,65159.0,65158.0,0.2153]
[1718920327354,0.08416315,65159.0,65158.0,0.2173]
[1718920330866,0.08416315,65159.0,65158.0,0.36986112]
[1718920331099,0.0746,65159.0,65158.0,0.36986112]
[1718920333833,0.0746,65159.0,65158.0,0.46986112]
[1718920337024,0.11928941,65159.0,65158.0,0.46986112]
[1718920337225,0.12885028,65159.0,65158.0,0.46986112]
[1718920338441,0.15696634,65159.0,65158.0,0.46986112]
[1718920340269,0.15696634,65159.0,65158.0,0.47080712]
[1718920343174,0.15696634,65159.0,65158.0,0.37080712]
[1718920344052,0.15696634,65159.0,65158.0,0.004946]
[1718920350747,0.08236634,65159.0,65158.0,0.004946]
[1718920350949,0.15696634,65159.0,65158.0,0.004946]
[1718920351359,0.08236634,65159.0,65158.0,0.004946]
[1718920351851,0.08236634,65159.0,65158.0,0.129646]
[1718920359585,0.08236634,65159.0,65158.0,0.12625059]
[1718920368324,0.08236634,65159.0,65158.0,0.22705059]
[1718920387392,0.08236634,65159.0,65156.0,0.2236]
[1718920387561,0.08236634,65159.0,65156.0,0.37616112]
[1718920387766,0.0746,65158.0,65156.0,0.37616112]
[1718920387974,0.08235912,65158.0,65156.0,0.37616112]
[1718920389400,0.08235912,65158.0,65156.0,0.27616112]
[1718920389621,0.08235912,65158.0,65156.0,0.27816112]
[1718920390145,0.08235912,65158.0,65156.0,0.27716112]
[1718920390502,0.09135912,65158.0,65156.0,0.27816112]
[1718920391827,0.10135912,65158.0,65156.0,0.27916112]
[1718920392509,0.10135912,65158.0,65156.0,0.1266]
[1718920398771,0.10135912,65158.0,65156.0,0.003]
[1718920404551,0.10221912,65158.0,65156.0,0.003]
[1718920407637,0.02761912,65158.0,65156.0,0.003]
[1718920407999,0.0746,65157.0,65156.0,0.003]
[1718920408399,0.08235558,65157.0,65156.0,0.003]
[1718920409030,0.08235558,65157.0,65156.0,0.002]
[1718920409231,0.08235558,65157.0,65155.0,0.2166]
[1718920409462,0.01575558,65157.0,65156.0,0.001]
[1718920409665,0.09035558,65157.0,65156.0,0.001]
[1718920410097,0.08235558,65157.0,65155.0,0.2166]
[1718920410544,0.09035558,65157.0,65155.0,0.2176]
[1718920412164,0.09035558,65157.0,65156.0,0.1241]
[1718920412378,0.08235558,65157.0,65156.0,0.2224]
[1718920412754,0.08235558,65157.0,65156.0,0.2234]
[1718920412755,0.09935558,65157.0,65156.0,0.2234]
[1718920413597,0.01575558,65157.0,65156.0,0.2234]
[1718920413800,0.09935558,65157.0,65156.0,0.2244]
[1718920415246,0.02475558,65157.0,65156.0,0.2244]
[1718920415443,0.09935558,65157.0,65156.0,0.2244]
[1718920418949,0.02475558,65157.0,65156.0,0.47696112]
[1718920419153,0.017,65157.0,65156.0,0.47696112]
[1718920419365,0.02475493,65157.0,65156.0,0.47696112]
[1718920419762,0.017,65157.0,65156.0,0.47696112]
[1718920419968,0.02475493,65157.0,65156.0,0.47696112]
[1718920424963,0.21000326,65171.0,65158.0,0.1239]
[1718920425181,0.00675936,65170.0,65160.0,0.1]
[1718920425388,0.00675936,65170.0,65160.0,0.25256112]
[1718920425389,0.0746,65161.0,65160.0,0.25256112]
[1718920426359,0.0746,65161.0,65160.0,0.25356112]
[1718920426629,0.0746,65161.0,65160.0,0.25256112]
[1718920427052,0.1006,65161.0,65160.0,0.25456112]
[1718920429556,0.10733061,65161.0,65160.0,0.25456112]
[1718920430850,0.10733061,65161.0,65160.0,0.002]
[1718920431458,0.1006,65161.0,65160.0,0.002]
[1718920431780,0.10734136,65161.0,65160.0,0.002]
[1718920436065,0.10820136,65161.0,65160.0,0.002]
[1718920438150,0.10820136,65161.0,65160.0,0.002]
[1718920439583,0.03360136,65161.0,65160.0,0.002]
[1718920439784,0.03360136,65161.0,65160.0,0.2174]
[1718920440000,0.10305034,65161.0,65160.0,0.2174]
[1718920450888,0.09630898,65161.0,65160.0,0.47136112]
[1718920468115,0.09630898,65161.0,65160.0,0.47230712]
[1718920474973,0.09630898,65161.0,65160.0,0.25550712]
[1718920475183,0.09630898,65161.0,65160.0,0.37420712]
[1718920476172,0.09630898,65161.0,65160.0,0.46690712]
[1718920476372,0.1058571,65161.0,65160.0,0.46690712]
[1718920477327,0.09630898,65161.0,65160.0,0.46690712]
[1718920486803,0.09630898,65161.0,65160.0,0.51369243]
[1718920489948,0.09630898,65161.0,65160.0,0.46690712]
[1718920494039,0.0525654,65170.0,65160.0,0.46690712]
[1718920494254,0.0746,65165.0,65164.0,0.1]
[1718920494453,0.08133193,65165.0,65164.0,0.1]
[1718920495653,0.08633193,65165.0,65164.0,0.101]
[1718920496908,0.01173193,65165.0,65164.0,0.101]
[1718920497136,0.08633193,65165.0,65164.0,0.102]
[1718920501416,0.0796,65165.0,65164.0,0.102]
[1718920505783,0.005,65165.0,65164.0,0.102]
[1718920506680,0.005,65165.0,65164.0,0.101]
[1718920506829,0.0746,65167.0,65164.0,0.1]
[1718920507026,0.00672823,65166.0,65164.0,0.101]
[1718920507848,0.00672823,65166.0,65164.0,0.102]
[1718920508332,0.00672823,65166.0,65164.0,0.1941]
[1718920508669,0.00672823,65166.0,65164.0,0.1931]
[1718920509666,0.00672823,65166.0,65164.0,0.1941]
[1718920510071,0.00672823,65166.0,65164.0,0.1931]
[1718920510401,0.00672823,65166.0,65164.0,0.1941]
[1718920511461,0.07127267,65170.0,65164.0,0.1941]
[1718920511639,0.00673904,65169.0,65164.0,0.1941]
[1718920512534,0.00673904,65169.0,65164.0,0.1921]
[1718920512699,0.00673904,65169.0,65164.0,0.1931]
[1718920512896,0.00673904,65169.0,65164.0,0.1941]
[1718920513337,0.00673904,65169.0,65164.0,0.1931]
[1718920513534,0.00673904,65169.0,65164.0,0.1941]
[1718920516945,0.00673904,65169.0,65166.0,0.0916]
[1718920517227,0.00673904,65169.0,65167.0,0.1189]
[1718920517427,0.7,65168.0,65167.0,0.1189]
[1718920517632,0.70673544,65168.0,65167.0,0.1189]
[1718920519283,0.70673544,65168.0,65167.0,0.1199]
[1718920519467,0.70673544,65168.0,65167.0,0.1189]
[1718920519852,0.70673544,65168.0,65167.0,0.1199]
[1718920521428,0.00673544,65168.0,65167.0,0.1199]
[1718920521621,0.06797267,65170.0,65167.0,0.1209]
[1718920521864,0.00680504,65169.0,65167.0,0.1209]
[1718920522648,0.00680504,65169.0,65167.0,0.1199]
[1718920523062,0.00680504,65169.0,65167.0,0.1209]
[1718920523303,0.00680504,65169.0,65167.0,0.1199]
[1718920524058,0.00680504,65169.0,65167.0,0.1209]
[1718920524605,0.00680504,65169.0,65167.0,0.1199]
[1718920524811,0.00680504,65169.0,65167.0,0.1209]
[1718920529196,0.00680504,65169.0,65168.0,0.0928]
[1718920529365,0.00680504,65169.0,65168.0,0.45786112]
[1718920530411,0.00680504,65169.0,65168.0,0.45886112]
[1718920530775,0.00680504,65169.0,65168.0,0.45986112]
[1718920540309,0.00680504,65169.0,65168.0,0.45886112]
[1718920540508,0.00680504,65169.0,65168.0,0.50574723]
[1718920540708,0.00680504,65169.0,65168.0,0.50674723]
[1718920540966,0.00680504,65169.0,65168.0,0.50774723]
[1718920541189,0.00680504,65169.0,65168.0,0.50574723]
[1718920541835,0.04028776,65170.0,65169.0,0.3196]
[1718920542046,0.04028776,65170.0,65169.0,0.52616584]
[1718920542212,0.04028776,65170.0,65169.0,0.47216112]
[1718920542447,0.07984159,65193.0,65176.0,0.2196]
[1718920542656,0.0746,65177.0,65176.0,0.2196]
[1718920542846,0.02,65189.0,65176.0,0.2196]
[1718920543055,0.0746,65177.0,65176.0,0.2196]
[1718920544398,0.0746,65177.0,65176.0,0.1266]
[1718920544757,0.0746,65177.0,65176.0,0.1276]
[1718920546984,0.00086,65186.0,65176.0,0.25456112]
[1718920547116,0.0746,65177.0,65176.0,0.25456112]
[1718920549223,0.0746,65177.0,65176.0,0.38016112]
[1718920556804,0.00086,65186.0,65176.0,0.38016112]
[1718920557011,0.0746,65177.0,65176.0,0.38016112]
[1718920557600,0.0746,65177.0,65176.0,0.37916112]
[1718920559154,0.0746,65177.0,65176.0,0.38016112]
[1718920559669,0.0746,65177.0,65176.0,0.37916112]
[1718920559874,0.0746,65177.0,65176.0,0.38016112]
[1718920564101,0.07546,65177.0,65176.0,0.38016112]
[1718920571812,0.1214784,65177.0,65176.0,0.38016112]
[1718920572983,0.14960913,65177.0,65176.0,0.38016112]
[1718920574028,0.07500913,65177.0,65176.0,0.38016112]
[1718920577175,0.07500913,65177.0,65176.0,0.38047407]
[1718920578334,0.13720673,65188.0,65176.0,0.38047407]
[1718920578607,0.0746,65179.0,65176.0,0.53302821]
[1718920579163,0.0746,65179.0,65176.0,0.37947407]
[1718920579368,0.0746,65178.0,65176.0,0.38047407]
[1718920579563,0.0746,65178.0,65176.0,0.37947407]
[1718920579904,0.0746,65178.0,65176.0,0.37847407]
[1718920581060,0.0746,65178.0,65176.0,0.37947407]
[1718920581494,0.0746,65178.0,65176.0,0.38047407]
[1718920581905,0.0746,65178.0,65176.0,0.37947407]
[1718920582267,0.0746,65178.0,65176.0,0.38047407]
[1718920588205,0.00955064,65177.0,65176.0,0.38047407]
[1718920588973,0.00955064,65177.0,65176.0,0.37947407]
[1718920589668,0.00955064,65177.0,65176.0,0.38047407]
[1718920589971,0.00955084,65177.0,65176.0,0.38047407]
[1718920592614,0.00955084,65177.0,65176.0,0.38047406]
[1718920593242,0.70955084,65177.0,65176.0,0.38047406]
[1718920594842,0.00955084,65177.0,65176.0,0.38047406]
[1718920595896,0.00955084,65177.0,65176.0,0.38142006]
[1718920604220,0.00955084,65177.0,65176.0,0.48202006]
[1718920605842,0.14882143,65178.0,65176.0,0.48202006]
[1718920606128,0.00955016,65177.0,65176.0,0.48202006]
[1718920607566,0.00955016,65177.0,65176.0,0.48102006]
[1718920607769,0.00955016,65177.0,65176.0,0.48202006]
[1718920608259,0.00955016,65177.0,65176.0,0.48102006]
[1718920608610,0.00955016,65177.0,65176.0,0.48202006]
[1718920609111,0.0095501,65177.0,65176.0,0.48202006]
[1718920610337,0.0095501,65177.0,65176.0,0.6345742]
[1718920611607,0.0095501,65177.0,65176.0,0.48202006]
[1718920612230,0.00955012,65177.0,65176.0,0.48202006]
[1718920614888,0.07422143,65178.0,65176.0,0.48202006]
[1718920615115,0.0095499,65177.0,65176.0,0.48202006]
[1718920615481,0.00954983,65177.0,65176.0,0.48202006]
[1718920616710,0.00954983,65177.0,65176.0,0.48102005]
[1718920617209,0.00954983,65177.0,65176.0,0.48202005]
[1718920617609,0.00954983,65177.0,65176.0,0.48102005]
[1718920618009,0.00954983,65177.0,65176.0,0.48202005]
[1718920618776,0.00954984,65177.0,65176.0,0.48202005]
[1718920621510,0.04080725,65185.0,65176.0,0.48202005]
[1718920621840,0.04510838,65189.0,65176.0,0.63457419]
[1718920622028,0.0746,65181.0,65176.0,0.63457419]
[1718920622637,0.0746,65181.0,65176.0,0.63357419]
[1718920622828,0.0746,65181.0,65176.0,0.63457419]
[1718920622995,0.0746,65181.0,65176.0,0.63357419]
[1718920623397,0.0746,65181.0,65176.0,0.63457419]
[1718920623592,0.0746,65181.0,65176.0,0.63357419]
[1718920623803,0.0746,65181.0,65176.0,0.63257419]
[1718920624406,0.0746,65181.0,65176.0,0.48102005]
[1718920624767,0.0746,65181.0,65177.0,0.1139]
[1718920625137,0.0746,65181.0,65177.0,0.11421293]
[1718920626289,0.0746,65181.0,65177.0,0.11521293]
[1718920627386,0.0746,65181.0,65177.0,0.11621293]
[1718920628796,0.0746,65181.0,65175.0,9.86872063]
[1718920629013,0.0746,65181.0,65175.0,9.78093854]
[1718920629386,0.0746,65178.0,65175.0,9.76043554]
[1718920629570,0.0746,65178.0,65175.0,9.75887985]
[1718920629931,0.0746,65178.0,65175.0,9.75987985]
[1718920630133,0.7,65177.0,65175.0,9.75987985]
[1718920630341,0.7,65177.0,65175.0,9.76087985]
[1718920630519,0.7,65177.0,65175.0,9.75987985]
[1718920630725,0.7,65177.0,65175.0,9.75932416]
[1718920630898,0.7,65177.0,65175.0,9.75776847]
[1718920631402,0.7,65177.0,65175.0,9.75676847]
[1718920631578,0.00954943,65176.0,65175.0,9.75676847]
[1718920632227,0.00954943,65176.0,65175.0,9.75576847]
[1718920632816,0.00954943,65176.0,65175.0,9.75676847]
[1718920633016,0.00954943,65176.0,65175.0,9.75776847]
[1718920633218,0.00954943,65176.0,65175.0,9.75676847]
[1718920633425,0.70954943,65176.0,65175.0,9.75676847]
[1718920633789,0.71054943,65176.0,65175.0,9.75776847]
[1718920634286,0.71054943,65176.0,65175.0,9.75676847]
[1718920634476,0.71054932,65176.0,65175.0,9.75676847]
[1718920635570,0.71054932,65176.0,65175.0,9.75776847]
[1718920635778,0.71054932,65176.0,65175.0,9.87356847]
[1718920637269,0.71054932,65176.0,65175.0,9.96746847]
[1718920637735,0.71054884,65176.0,65175.0,9.96746847]
[1718920640415,0.71054884,65176.0,65175.0,9.87356847]
[1718920640620,0.71054884,65176.0,65175.0,9.75776847]
[1718920640909,0.7105467,65176.0,65175.0,9.75776847]
[1718920641338,0.701,65176.0,65175.0,9.75776847]
[1718920641577,0.71054659,65176.0,65175.0,9.75776847]
[1718920644108,0.71054657,65176.0,65175.0,9.75776847]
[1718920647400,0.71283162,65176.0,65175.0,9.75776847]
[1718920648131,0.75696675,65176.0,65175.0,9.75776847]
[1718920650468,0.7565154,65176.0,65175.0,9.75776847]
[1718920653792,0.75676603,65176.0,65175.0,9.75776847]
[1718920654804,0.75676603,65176.0,65175.0,9.74447685]
[1718920656890,0.74513513,65176.0,65175.0,9.74447685]
[1718920657049,0.75476205,65176.0,65175.0,9.74447685]
[1718920658621,0.75476205,65176.0,65175.0,9.73757161]
[1718920658789,0.75476205,65176.0,65175.0,9.70026061]
[1718920659265,0.84507411,65176.0,65175.0,9.57926061]
[1718920659440,0.75476205,65176.0,65175.0,9.51264061]
[1718920660220,0.7537841,65176.0,65175.0,9.51164061]
[1718920660764,0.7993382,65176.0,65175.0,9.51264061]
[1718920661244,0.91052436,65176.0,65175.0,9.51358661]
[1718920661539,0.91138436,65176.0,65175.0,9.51358661]
[1718920662886,0.91138436,65176.0,65175.0,9.44858661]
[1718920663309,0.8821636,65176.0,65175.0,9.44858661]
[1718920663488,0.94327317,65176.0,65175.0,9.44858661]
[1718920664192,0.83208701,65176.0,65175.0,9.44858661]
[1718920666588,0.83238744,65176.0,65175.0,9.44858661]
[1718920667182,0.77113131,65176.0,65175.0,9.44858661]
[1718920667388,0.83238744,65176.0,65175.0,9.44858661]
[1718920667587,0.77113131,65176.0,65175.0,9.44858661]
[1718920667810,0.85949678,65176.0,65175.0,9.44858661]
[1718920668008,0.85949678,65176.0,65175.0,9.43411105]
[1718920669649,0.85914783,65176.0,65175.0,9.43411105]
[1718920670664,0.77078236,65176.0,65175.0,9.43411105]
[1718920671257,0.77078236,65176.0,65175.0,9.4094403]
[1718920672946,0.77096329,65176.0,65175.0,9.4094403]
[1718920674337,0.8320595,65176.0,65175.0,9.4094403]
[1718920675259,0.83210698,65176.0,65175.0,9.4094403]
[1718920675378,0.83210698,65176.0,65175.0,9.34433848]
[1718920676281,0.83210899,65176.0,65175.0,9.34433848]
[1718920678447,0.94657223,65176.0,65175.0,9.34433848]